bitfinex/quotes_ETHUSD_20230110
["timestamp","ask_amount","ask_price","bid_price","bid_amount"]
[1673360563676,51.53787148,1331.2,1331.1,0.51274229]
[1673360565035,40.91456713,1331.2,1331.1,0.51274229]
[1673360565248,13.19517647,1331.2,1331.1,0.51274229]
[1673360565928,20.70718647,1331.2,1331.1,0.51274229]
[1673360566352,28.21919647,1331.2,1331.1,0.51274229]
[1673360566617,20.70718647,1331.2,1331.1,0.51274229]
[1673360567193,28.21919647,1331.2,1331.1,0.51274229]
[1673360567405,36.88895735,1331.2,1331.1,0.51274229]
[1673360567666,38.80555735,1331.2,1331.1,0.51274229]
[1673360567874,39.03555735,1331.2,1331.1,0.51274229]
[1673360569031,40.15786171,1331.2,1331.1,0.51274229]
[1673360569187,38.47440518,1331.2,1331.1,0.51274229]
[1673360569397,40.15795741,1331.2,1331.1,0.51274229]
[1673360569656,38.47440518,1331.2,1331.1,0.51274229]
[1673360570029,40.15792851,1331.2,1331.1,0.51274229]
[1673360570715,40.15792851,1331.2,1331.1,0.51040213]
[1673360571393,38.47440518,1331.2,1331.1,0.51040213]
[1673360572056,40.15811476,1331.2,1331.1,0.51040213]
[1673360572270,47.37557366,1331.2,1331.1,0.51040213]
[1673360572459,53.80823172,1331.2,1331.1,0.51040213]
[1673360573129,65.56362301,1331.2,1331.0,0.10282702]
[1673360573343,0.0102827,1330.9,1330.6,0.83349584]
[1673360573496,15.82850064,1330.7,1330.6,0.83349584]
[1673360573706,36.76354706,1330.7,1330.6,0.83349584]
[1673360573984,44.68154706,1330.7,1330.6,0.83349584]
[1673360574189,21.73386706,1330.7,1330.6,0.83349584]
[1673360574493,30.37158448,1330.7,1330.6,0.83349584]
[1673360575124,29.24870706,1330.7,1330.6,0.83349584]
[1673360575282,39.04170349,1330.7,1330.6,0.83349584]
[1673360575495,37.91882607,1330.7,1330.6,0.83349584]
[1673360575747,39.27182607,1330.7,1330.6,0.83349584]
[1673360575962,46.78666607,1330.7,1330.6,0.83349584]
[1673360576334,46.03454706,1330.7,1330.6,0.83349584]
[1673360576791,24.20974448,1330.7,1330.6,5.84e-06]
[1673360577006,39.23942448,1330.7,1330.6,5.84e-06]
[1673360577219,38.11654706,1330.7,1330.6,5.84e-06]
[1673360577395,46.03454706,1330.7,1330.6,5.84e-06]
[1673360577759,47.15742448,1330.7,1330.6,5.84e-06]
[1673360579200,46.03454706,1330.7,1330.6,5.84e-06]
[1673360579425,47.90954349,1330.7,1330.6,5.84e-06]
[1673360581523,49.82298221,1330.7,1330.6,5.84e-06]
[1673360581914,55.67100854,1330.7,1330.6,5.84e-06]
[1673360582154,68.54637008,1330.7,1330.2,0.049]
[1673360582368,35.20806064,1330.3,1330.0,8.3147523]
[1673360582583,22.55469,1330.1,1330.0,8.3467523]
[1673360582744,24.36656949,1330.1,1330.0,0.7774523]
[1673360582953,24.36656949,1330.1,1330.0,0.7284523]
[1673360584889,24.59656949,1330.1,1330.0,0.7284523]
[1673360585098,3.80166064,1330.1,1330.0,0.7284523]
[1673360585320,3.79766064,1330.1,1330.0,0.7284523]
[1673360585531,0.066,1330.2,1330.0,0.7284523]
[1673360585773,7.51741,1330.3,1330.0,27.1378223]
[1673360585774,0.004,1330.3,1330.0,27.1378223]
[1673360586060,0.06223135,1330.7,1330.1,15.57212769]
[1673360586209,3.79766064,1330.6,1330.4,1.353]
[1673360586425,3.79766064,1330.6,1330.5,1.35735099]
[1673360586628,3.79766064,1330.6,1330.5,3.85735099]
[1673360586879,18.82846064,1330.6,1330.4,0.049]
[1673360587053,3.79766064,1330.5,1330.1,20.5014]
[1673360587278,3.79766064,1330.4,1330.1,21.86471403]
[1673360587473,3.79766064,1330.4,1330.2,2.5]
[1673360587946,0.06223135,1330.5,1330.2,3.853]
[1673360588268,3.79766064,1330.5,1330.3,0.02331053]
[1673360588578,3.06223135,1330.6,1330.3,0.02331053]
[1673360588805,3.79766064,1330.6,1330.4,1.353]
[1673360589099,3.79766064,1330.6,1330.5,2.5]
[1673360589680,0.06223135,1330.7,1330.5,3.853]
[1673360589894,3.79766064,1330.7,1330.6,1.96630527]
[1673360590204,0.06223135,1330.8,1330.6,1.96630527]
[1673360590430,3.79766064,1330.8,1330.6,1.96630527]
[1673360590674,3.79766064,1330.8,1330.6,3.3047188]
[1673360591043,3.79766064,1330.8,1330.6,1.38030527]
[1673360593078,3.79766064,1330.8,1330.6,16.41100527]
[1673360593285,3.79766064,1330.8,1330.7,2.5]
[1673360594151,11.31193064,1330.8,1330.6,3.92930527]
[1673360594465,3.80166064,1330.8,1330.6,3.88030527]
[1673360594695,3.79766064,1330.8,1330.6,4.9397358]
[1673360595039,3.79766064,1330.7,1330.6,0.02330527]
[1673360595279,3.79766064,1330.7,1330.5,11.36892]
[1673360595494,3.79766064,1330.7,1330.5,3.902]
[1673360595736,3.79766064,1330.7,1330.5,3.853]
[1673360596039,3.79766064,1330.7,1330.5,18.88488]
[1673360596206,3.79766064,1330.7,1330.5,29.8460943]
[1673360596422,3.79766064,1330.7,1330.5,29.85139311]
[1673360598966,3.79766064,1330.7,1330.5,22.33542311]
[1673360599177,3.79766064,1330.7,1330.5,12.31945311]
[1673360599344,3.79766064,1330.7,1330.5,8.92320881]
[1673360599766,3.79766064,1330.7,1330.5,1.40729881]
[1673360600045,3.79766064,1330.7,1330.5,1.35829881]
[1673360601048,3.79966064,1330.7,1330.5,1.35829881]
[1673360601257,3.79766064,1330.7,1330.5,1.35829881]
[1673360601993,3.79766064,1330.7,1330.5,16.39001881]
[1673360602339,3.79766064,1330.7,1330.5,19.57231703]
[1673360603024,3.79766064,1330.7,1330.5,12.05634703]
[1673360603813,3.79766064,1330.7,1330.6,2.5]
[1673360604164,0.06223135,1330.8,1330.6,11.3684]
[1673360604285,3.79766064,1330.8,1330.7,3.31340323]
[1673360604498,0.06223135,1330.9,1330.7,27.33100355]
[1673360604713,3.0,1331.0,1330.8,1.342]
[1673360605080,7.36126064,1331.0,1330.8,1.342]
[1673360605251,7.36526064,1331.0,1330.8,1.342]
[1673360605440,3.004,1331.0,1330.8,3.842]
[1673360605652,4.1834128,1331.1,1330.8,5.01517292]
[1673360605976,15.43143209,1331.1,1330.9,1.353]
[1673360606178,15.99903209,1331.1,1330.9,1.353]
[1673360607330,23.51162209,1331.1,1330.9,1.353]
[1673360607784,3.79766064,1331.0,1330.9,1.353]
[1673360607979,3.79766064,1331.0,1330.8,1.37540155]
[1673360608206,11.31080064,1331.0,1330.8,1.37540155]
[1673360608415,11.31480064,1331.0,1330.8,1.37540155]
[1673360609331,3.79766064,1330.9,1330.8,1.37540155]
[1673360609536,3.79766064,1330.9,1330.8,1.353]
[1673360610484,3.79766064,1330.9,1330.7,0.049]
[1673360610485,3.79766064,1330.9,1330.7,1.353]
[1673360610699,3.79766064,1330.8,1330.7,1.353]
[1673360611145,0.06223135,1330.9,1330.7,8.86784]
[1673360611339,3.79766064,1330.9,1330.7,16.43168]
[1673360611687,3.79766064,1330.9,1330.7,23.94652]
[1673360612008,3.79766064,1330.9,1330.7,23.95267329]
[1673360612195,3.79766064,1330.9,1330.7,8.92299329]
[1673360613128,3.79766064,1330.9,1330.7,1.40815329]
[1673360613322,3.79766064,1330.9,1330.7,1.35915329]
[1673360614207,3.79766064,1330.9,1330.7,23.90359329]
[1673360614417,3.79766064,1330.9,1330.7,27.48464662]
[1673360614643,1.1834128,1331.0,1330.7,19.96980662]
[1673360614822,4.91884209,1331.0,1330.7,19.96980662]
[1673360615164,4.91884209,1331.0,1330.7,12.45496662]
[1673360615165,12.43199209,1331.0,1330.7,12.45496662]
[1673360615321,12.43599209,1331.0,1330.7,4.94020662]
[1673360615532,12.43599209,1331.0,1330.7,4.89120662]
[1673360616066,11.31481064,1331.0,1330.7,12.40602662]
[1673360616287,11.31481064,1331.0,1330.7,12.45502662]
[1673360616905,3.79766064,1330.9,1330.7,1.40815329]
[1673360617115,11.31153064,1330.9,1330.7,1.35915329]
[1673360617341,11.31553064,1330.9,1330.7,1.35915329]
[1673360617948,3.80166064,1330.9,1330.7,1.35915329]
[1673360618160,3.79766064,1330.9,1330.7,17.66625762]
[1673360618530,0.06223135,1331.0,1330.7,17.71525762]
[1673360618744,3.79766064,1331.0,1330.7,17.71525762]
[1673360618897,3.79766064,1331.0,1330.7,10.20041762]
[1673360619312,3.79766064,1331.0,1330.7,2.68580762]
[1673360619313,4.91884209,1331.0,1330.7,2.68580762]
[1673360619559,12.43213209,1331.0,1330.7,2.63680762]
[1673360619780,12.43613209,1331.0,1330.7,2.63680762]
[1673360619997,4.92284209,1331.0,1330.7,2.63680762]
[1673360620203,3.79766064,1331.0,1330.7,10.15155762]
[1673360620417,3.79766064,1331.0,1330.7,10.20055762]
[1673360620998,3.79766064,1331.0,1330.7,17.71539762]
[1673360621204,4.91884209,1331.0,1330.8,2.5]
[1673360621451,3.79766064,1331.0,1330.8,2.5]
[1673360622176,4.91884209,1331.0,1330.8,2.5]
[1673360622534,4.91884209,1331.0,1330.7,25.23014762]
[1673360622836,12.43207209,1331.0,1330.7,2.68580762]
[1673360623156,12.43207209,1331.0,1330.7,1.35915329]
[1673360623157,3.79766064,1330.9,1330.7,1.35915329]
[1673360623465,12.43262209,1330.9,1330.7,0.00615329]
[1673360623780,14.12093823,1330.9,1330.7,0.00615329]
[1673360623994,12.43662209,1330.9,1330.7,0.00615329]
[1673360625342,3.79766064,1330.8,1330.5,21.0887]
[1673360625630,4.91884209,1330.7,1330.5,12.9934]
[1673360625830,19.94877209,1330.7,1330.5,12.9934]
[1673360626042,13.49653778,1330.7,1330.5,11.6404]
[1673360626297,13.49653778,1330.7,1330.5,0.049]
[1673360626617,13.49653778,1330.7,1330.4,1.353]
[1673360627233,14.61771923,1330.7,1330.4,1.353]
[1673360627538,16.30203537,1330.7,1330.4,1.353]
[1673360627767,16.30203537,1330.7,1330.4,3.853]
[1673360627979,16.30203537,1330.7,1330.4,1.353]
[1673360628297,12.43768209,1330.7,1330.4,1.353]
[1673360628676,12.43768209,1330.7,1330.4,3.853]
[1673360629093,12.43768209,1330.7,1330.5,0.00692622]
[1673360629555,12.43768209,1330.7,1330.5,0.00376835]
[1673360630067,4.92284209,1330.7,1330.5,0.00376835]
[1673360630322,4.91884209,1330.7,1330.5,0.00376835]
[1673360632448,3.79766064,1330.7,1330.5,15.03569835]
[1673360632709,3.79766064,1330.7,1330.5,26.72893936]
[1673360633498,1.1834128,1330.8,1330.6,17.5308]
[1673360633708,4.91884209,1330.8,1330.6,10.0644]
[1673360634129,12.08192894,1330.9,1330.6,2.549]
[1673360634341,12.08192894,1330.9,1330.6,11.36792]
[1673360634342,13.57334209,1330.9,1330.6,11.36792]
[1673360634548,13.57334209,1330.9,1330.6,6.3522921]
[1673360635187,21.08707209,1330.9,1330.6,6.3522921]
[1673360636130,22.77138823,1330.9,1330.6,6.3522921]
[1673360636665,21.08707209,1330.9,1330.6,6.3522921]
[1673360636879,21.08707209,1330.9,1330.6,9.1495378]
[1673360637317,21.08707209,1330.9,1330.6,9.17397647]
[1673360637709,21.08707209,1330.9,1330.6,6.37673077]
[1673360637943,21.08707209,1330.9,1330.6,9.17397647]
[1673360639567,22.77138823,1330.9,1330.6,6.37673077]
[1673360639742,21.08707209,1330.9,1330.6,6.37673077]
[1673360639940,21.08707209,1330.9,1330.6,9.17358728]
[1673360640146,9.77568145,1330.9,1330.6,16.68889728]
[1673360640394,0.004,1330.9,1330.7,3.20438651]
[1673360640609,1.68478145,1331.0,1330.8,15.02854]
[1673360640935,1.12118145,1331.0,1330.8,17.57738]
[1673360641084,1.12118145,1331.0,1330.8,10.06311]
[1673360641507,1.12118145,1331.0,1330.8,0.049]
[1673360641772,1.12118145,1331.0,1330.8,2.0]
[1673360641940,1.12118145,1331.0,1330.8,20.17522262]
[1673360642156,1.12118145,1331.0,1330.8,20.22422262]
[1673360642369,1.12118145,1331.0,1330.8,5.19589262]
[1673360642796,1.12118145,1331.0,1330.8,25.73868262]
[1673360643111,2.80549759,1331.0,1330.8,10.71014262]
[1673360643315,17.83220759,1331.0,1330.8,3.19589262]
[1673360643552,17.83620759,1331.0,1330.7,4.12858972]
[1673360643717,17.83620759,1331.0,1330.7,4.07958972]
[1673360643927,1.12118145,1330.9,1330.7,4.07958972]
[1673360644186,1.12118145,1330.9,1330.7,2.73958972]
[1673360644590,1.12318145,1330.9,1330.7,10.25436972]
[1673360644782,1.12118145,1330.9,1330.7,10.30336972]
[1673360646621,2.80549759,1331.0,1330.7,10.30336972]
[1673360647057,2.80549759,1331.0,1330.7,2.78858972]
[1673360647269,2.80549759,1331.0,1330.7,2.73958972]
[1673360648010,1.12118145,1330.9,1330.7,2.73958972]
[1673360648228,16.14866145,1330.9,1330.7,2.73958972]
[1673360648415,8.63892145,1330.9,1330.6,15.6144921]
[1673360648628,10.32323759,1330.9,1330.6,15.6144921]
[1673360648825,2.80949759,1330.9,1330.6,23.1298721]
[1673360649030,2.80549759,1330.9,1330.6,23.1298721]
[1673360649326,2.80549759,1330.9,1330.6,15.6144921]
[1673360649658,2.80549759,1330.9,1330.6,30.6452121]
[1673360649870,1.12118145,1330.9,1330.6,33.44205656]
[1673360650082,1.12118145,1330.9,1330.6,18.41133656]
[1673360650338,2.80549759,1330.9,1330.6,25.92671761]
[1673360650509,2.80549759,1330.9,1330.6,15.6144921]
[1673360650721,1.12118145,1330.8,1330.6,15.61211889]
[1673360651178,12.43311209,1330.8,1330.6,0.049]
[1673360651389,12.43311209,1330.8,1330.5,15.09503]
[1673360651390,4.92284209,1330.8,1330.5,15.09503]
[1673360651617,12.43317209,1330.8,1330.5,7.5792]
[1673360651920,8.06817553,1330.8,1330.5,7.5792]
[1673360652232,9.75249167,1330.8,1330.5,15.09506]
[1673360653289,1.12118145,1330.7,1330.5,15.09506]
[1673360653717,1.12118145,1330.7,1330.5,7.56486]
[1673360654194,1.12318145,1330.7,1330.5,7.56186]
[1673360654405,1.12118145,1330.7,1330.5,7.56486]
[1673360655263,9.81072302,1330.8,1330.5,7.56486]
[1673360655475,17.26686167,1330.8,1330.5,7.56496]
[1673360655692,9.75249167,1330.8,1330.5,10.06496]
[1673360656019,9.75249167,1330.8,1330.5,7.56496]
[1673360656737,8.06817553,1330.8,1330.5,15.08093]
[1673360657118,9.75249167,1330.8,1330.5,15.08093]
[1673360657329,8.06817553,1330.8,1330.5,15.08093]
[1673360658401,4.92284209,1330.8,1330.5,22.5969]
[1673360658643,23.00318682,1330.9,1330.5,26.50565077]
[1673360658860,23.00318682,1330.9,1330.7,15.02968]
[1673360658861,25.05829997,1330.9,1330.7,15.02968]
[1673360659072,5.48654209,1330.9,1330.7,7.56384]
[1673360659223,4.92284209,1330.9,1330.7,7.56384]
[1673360659430,4.91884209,1330.9,1330.8,2.5]
[1673360660327,4.91884209,1330.9,1330.8,10.01427]
[1673360660639,4.91884209,1330.9,1330.8,10.06327]
[1673360663110,4.91884209,1330.9,1330.8,0.049]
[1673360663326,4.91884209,1330.9,1330.7,22.61652619]
[1673360667565,6.60315823,1330.9,1330.7,22.61652619]
[1673360667752,6.60715823,1330.9,1330.7,7.58684619]
[1673360668790,4.92284209,1330.9,1330.7,7.58684619]
[1673360669035,6.60315823,1330.9,1330.7,15.10168619]
[1673360669242,6.60715823,1330.9,1330.7,15.10168619]
[1673360670402,8.41507267,1330.9,1330.7,7.58684619]
[1673360670728,1.12118145,1330.8,1330.7,7.58684619]
[1673360672204,1.12118145,1330.8,1330.7,0.07227619]
[1673360672512,1.12118145,1330.8,1330.7,0.02327619]
[1673360676018,1.12118145,1330.8,1330.5,20.60189697]
[1673360676334,2.80549759,1330.8,1330.5,16.69339]
[1673360676715,2.80549759,1330.8,1330.5,19.49035097]
[1673360677333,2.80549759,1330.8,1330.5,27.00632097]
[1673360677584,2.80549759,1330.8,1330.5,31.97924206]
[1673360678438,6.60315823,1330.8,1330.5,18.13735097]
[1673360678611,6.60715823,1330.8,1330.5,22.85636]
[1673360678834,6.60715823,1330.8,1330.5,25.65332097]
[1673360679219,6.60715823,1330.8,1330.5,25.67776146]
[1673360679907,6.60715823,1330.8,1330.5,30.39677049]
[1673360680216,6.60715823,1330.8,1330.5,33.19373146]
[1673360681118,6.60915823,1330.8,1330.5,33.19073146]
[1673360681363,6.60715823,1330.8,1330.5,25.67776146]
[1673360682065,6.60715823,1330.8,1330.5,37.8989866]
[1673360682276,4.92284209,1330.8,1330.5,37.8989866]
[1673360682535,4.91884209,1330.8,1330.5,39.0105326]
[1673360682697,4.91884209,1330.8,1330.5,37.8989866]
[1673360683339,4.91884209,1330.8,1330.5,31.4945626]
[1673360683788,4.91884209,1330.8,1330.6,2.5]
[1673360683999,4.91884209,1330.8,1330.6,10.01537]
[1673360684194,4.91884209,1330.8,1330.6,10.06437]
[1673360684799,4.91884209,1330.8,1330.6,17.57977]
[1673360685006,4.92084209,1330.8,1330.6,17.57677]
[1673360685272,4.91884209,1330.8,1330.6,17.57977]
[1673360686389,4.91884209,1330.8,1330.6,10.06437]
[1673360687796,6.60315823,1330.8,1330.6,10.06437]
[1673360687945,6.60715823,1330.8,1330.6,10.06437]
[1673360688831,2.80949759,1330.8,1330.6,10.06437]
[1673360689050,2.80549759,1330.8,1330.6,10.06437]
[1673360690308,1.12118145,1330.8,1330.6,25.09517]
[1673360690471,1.12118145,1330.8,1330.6,29.99761609]
[1673360691045,1.12118145,1330.8,1330.6,32.79454567]
[1673360691989,2.86772894,1330.9,1330.8,0.00271498]
[1673360692197,6.60315823,1330.9,1330.8,22.54552498]
[1673360692410,6.60715823,1330.9,1330.8,22.59452498]
[1673360692585,2.80949759,1330.9,1330.8,22.59452498]
[1673360692806,1.12118145,1330.9,1330.8,22.59452498]
[1673360694427,1.12118145,1330.9,1330.8,25.13597239]
[1673360695214,1.12118145,1330.9,1330.8,17.62170239]
[1673360695697,11.47212894,1331.0,1330.8,17.62170239]
[1673360695851,11.47212894,1331.0,1330.8,25.13597239]
[1673360695852,1.12118145,1330.9,1330.8,25.13597239]
[1673360696066,11.47212894,1331.0,1330.8,25.13597239]
[1673360696280,1.12118145,1330.9,1330.8,25.13597239]
[1673360697042,1.12118145,1330.9,1330.8,25.13369167]
[1673360697214,1.12118145,1330.9,1330.8,17.61942167]
[1673360697613,1.12118145,1330.9,1330.8,25.13369167]
[1673360698151,2.86772894,1331.0,1330.9,2.5]
[1673360698362,2.86772894,1331.0,1330.9,25.04113]
[1673360698363,2.80549759,1331.0,1330.9,25.04113]
[1673360698593,2.80549759,1331.0,1330.9,25.09013]
[1673360698784,1.12118145,1331.0,1330.9,27.85333117]
[1673360699011,2.80549759,1331.1,1330.9,27.85333117]
[1673360699234,1.12118145,1331.1,1330.9,27.85333117]
[1673360699629,2.80549759,1331.1,1330.9,27.85333117]
[1673360699817,2.80549759,1331.1,1330.9,20.33962117]
[1673360700276,1.12118145,1331.1,1330.9,20.33962117]
[1673360701739,2.80549759,1331.1,1330.9,20.33962117]
[1673360702378,2.80549759,1331.1,1330.9,20.36289386]
[1673360702587,1.12118145,1331.1,1330.9,20.36289386]
[1673360703835,16.14653145,1331.1,1330.9,0.07227269]
[1673360704049,1.12118145,1331.0,1330.9,0.02327269]
[1673360707248,1.74654749,1331.1,1330.9,9.47998269]
[1673360707249,1.12118145,1331.1,1330.9,9.47998269]
[1673360707394,1.12118145,1331.1,1330.9,24.55640269]
[1673360707605,1.12118145,1331.1,1330.9,17.04269269]
[1673360707867,1.12118145,1331.1,1330.9,20.02804297]
[1673360708049,10.84082894,1331.2,1330.9,20.02804297]
[1673360708295,14.58025823,1331.2,1330.9,12.51433297]
[1673360708475,14.58025823,1331.2,1330.9,17.04269269]
[1673360708809,14.58025823,1331.2,1330.9,9.52898269]
[1673360710766,14.58025823,1331.2,1330.9,24.55640269]
[1673360711179,14.58025823,1331.2,1330.9,17.04269269]
[1673360712032,3.79766064,1331.1,1330.9,0.049]
[1673360712245,21.63721209,1331.0,1330.8,0.00043426]
[1673360712478,3.79766064,1330.9,1330.8,0.00043426]
[1673360712858,18.82508064,1330.9,1330.8,0.00043426]
[1673360713069,21.22789699,1330.9,1330.8,0.00043426]
[1673360713371,14.83536844,1330.9,1330.8,0.00043426]
[1673360714123,22.34907844,1330.9,1330.8,0.00043426]
[1673360714366,32.12492313,1330.9,1330.8,0.00043426]
[1673360714601,32.68862313,1330.9,1330.8,0.00043426]
[1673360714859,32.12492313,1330.9,1330.8,0.00043426]
[1673360715098,26.85696798,1330.9,1330.8,0.00043426]
[1673360715288,10.70808836,1330.9,1330.8,0.00043426]
[1673360715505,9.02377222,1330.9,1330.8,0.00043426]
[1673360719725,7.32477222,1330.9,1330.8,0.00043426]
[1673360720271,7.32677222,1330.9,1330.8,0.00043426]
[1673360720432,7.32477222,1330.9,1330.8,0.00043426]
[1673360721427,1.12829523,1330.9,1330.8,0.58643426]
[1673360721738,10.17422658,1331.0,1330.8,7.51470426]
[1673360721905,13.91365587,1331.0,1330.8,0.04943426]
[1673360722122,15.59797201,1331.0,1330.8,0.00043426]
[1673360722684,23.11127201,1331.0,1330.8,0.00043426]
[1673360722999,1.12429523,1330.9,1330.8,0.00043426]
[1673360724345,23.16950336,1331.0,1330.8,0.00043426]
[1673360724555,23.11127201,1331.0,1330.8,0.00043426]
[1673360724740,1.12429523,1330.9,1330.8,0.00043426]
[1673360726205,3.44124557,1330.9,1330.8,0.00043426]
[1673360726880,5.12556171,1330.9,1330.8,0.00043426]
[1673360727119,5.12956171,1330.9,1330.8,0.00043426]
[1673360727269,12.64327171,1330.9,1330.8,0.00043426]
[1673360727675,16.44093235,1330.9,1330.8,0.00043426]
[1673360727880,0.00289739,1330.8,1330.6,0.02327795]
[1673360728092,1.12770667,1330.8,1330.6,0.02327795]
[1673360728477,8.64203667,1330.8,1330.6,0.02327795]
[1673360728688,8.64603667,1330.8,1330.6,0.02327795]
[1673360729353,17.26823667,1330.8,1330.6,0.02327795]
[1673360729666,9.75390667,1330.8,1330.6,0.02327795]
[1673360730805,17.26818667,1330.8,1330.6,0.02327795]
[1673360731136,9.75390667,1330.8,1330.6,0.02327795]
[1673360731453,17.26825667,1330.8,1330.6,0.02327795]
[1673360731878,24.78260667,1330.8,1330.6,0.02327795]
[1673360732259,26.46692281,1330.8,1330.4,20.2313]
[1673360732461,7.51484,1330.7,1330.4,20.2313]
[1673360732670,0.004,1330.7,1330.4,27.74769]
[1673360732920,26.46692281,1330.8,1330.4,30.5449236]
[1673360733095,30.26458345,1330.8,1330.5,0.41679167]
[1673360733554,37.77928345,1330.8,1330.5,0.41679167]
[1673360734364,36.09496731,1330.8,1330.5,0.43902363]
[1673360734573,28.58026731,1330.8,1330.5,0.43902363]
[1673360734884,28.58026731,1330.8,1330.5,15.47075363]
[1673360734885,13.55156731,1330.8,1330.5,15.47075363]
[1673360735124,13.55156731,1330.8,1330.5,15.51975363]
[1673360735816,13.55156731,1330.8,1330.5,8.00378363]
[1673360736039,21.06601731,1330.8,1330.5,0.48802363]
[1673360736296,21.06601731,1330.8,1330.5,0.43902363]
[1673360736605,28.58046731,1330.8,1330.5,0.43902363]
[1673360737127,3.79766064,1330.7,1330.5,0.43902363]
[1673360737711,11.31250064,1330.7,1330.5,0.43902363]
[1673360737969,11.31650064,1330.7,1330.5,0.43902363]
[1673360738339,11.31850064,1330.7,1330.5,0.43902363]
[1673360738603,11.31650064,1330.7,1330.5,0.43902363]
[1673360741317,11.31650064,1330.7,1330.4,20.17032363]
[1673360742166,11.31650064,1330.7,1330.4,27.68678363]
[1673360743316,11.31650064,1330.7,1330.4,20.17032363]
[1673360744923,11.31650064,1330.7,1330.4,27.69003402]
[1673360745432,3.80166064,1330.7,1330.4,27.69003402]
[1673360745662,11.31257064,1330.7,1330.4,27.69003402]
[1673360745871,11.31657064,1330.7,1330.4,27.69003402]
[1673360746790,3.80166064,1330.7,1330.4,39.23529543]
[1673360747030,3.79766064,1330.7,1330.4,39.23529543]
[1673360748476,3.79766064,1330.7,1330.4,31.71876543]
[1673360748672,8.68732874,1330.8,1330.5,2.5]
[1673360748890,8.62909739,1330.8,1330.6,22.5462]
[1673360749211,8.62909739,1330.8,1330.6,25.851393]
[1673360749427,0.00689739,1330.8,1330.6,18.335993]
[1673360749636,0.00289739,1330.8,1330.6,18.335993]
[1673360750503,0.00289739,1330.8,1330.7,2.5]
[1673360750905,0.00289739,1330.8,1330.6,7.5644]
[1673360751135,0.00289739,1330.8,1330.7,2.5]
[1673360752168,1.12770667,1330.8,1330.6,0.049]
[1673360752376,1.12770667,1330.8,1330.5,12.86156814]
[1673360752587,1.12770667,1330.8,1330.5,25.27811345]
[1673360753117,12.43730992,1330.7,1330.5,0.049]
[1673360753332,18.83134064,1330.7,1330.4,24.07893413]
[1673360753553,12.44130992,1330.7,1330.4,21.28186963]
[1673360753740,11.31650064,1330.7,1330.5,1.86472649]
[1673360753950,11.31650064,1330.7,1330.5,4.36472649]
[1673360754159,11.31650064,1330.7,1330.4,33.26795808]
[1673360754370,11.31650064,1330.7,1330.5,1.8646986]
[1673360755354,12.44130992,1330.7,1330.5,1.8646986]
[1673360756413,12.44130992,1330.7,1330.4,27.43804508]
[1673360756414,27.47098992,1330.7,1330.4,27.43804508]
[1673360756635,27.47098992,1330.7,1330.4,24.64098058]
[1673360759312,27.47098992,1330.7,1330.4,7.8068]
[1673360759522,29.15530606,1330.7,1330.4,7.8068]
[1673360760367,4.92246992,1330.6,1330.4,0.049]
[1673360760631,23.54137443,1330.6,1330.2,29.97969118]
[1673360760797,23.54137443,1330.6,1330.3,1.86500453]
[1673360760798,30.08960185,1330.6,1330.3,1.86500453]
[1673360761008,3.79766064,1330.5,1330.3,1.86500453]
[1673360761330,27.70125064,1330.4,1330.2,0.17049123]
[1673360761661,3.79766064,1330.3,1330.2,0.12149123]
[1673360761989,1.80810342,1330.3,1330.2,0.12149123]
[1673360762201,3.10852783,1330.3,1330.2,1.9866503]
[1673360762517,3.10852783,1330.3,1330.2,1.9866797]
[1673360762884,3.10852783,1330.3,1330.2,0.12149123]
[1673360763094,3.10852783,1330.3,1330.2,1.98666054]
[1673360763303,3.10852783,1330.3,1330.2,1.98665939]
[1673360763880,3.10852783,1330.3,1330.2,0.12149123]
[1673360764461,3.10852783,1330.3,1330.2,0.07149123]
[1673360765139,10.62562783,1330.3,1330.2,0.07149123]
[1673360765300,10.62962783,1330.3,1330.2,0.07149123]
[1673360765513,10.63162783,1330.3,1330.2,0.07149123]
[1673360765721,10.62962783,1330.3,1330.2,0.07149123]
[1673360767113,3.11252783,1330.3,1330.2,0.07149123]
[1673360767345,3.10852783,1330.3,1330.2,0.07149123]
[1673360767566,10.62562783,1330.3,1330.2,0.07149123]
[1673360767754,10.62962783,1330.3,1330.2,0.07149123]
[1673360767959,25.66382783,1330.3,1330.2,0.07149123]
[1673360768439,25.66582783,1330.3,1330.2,0.07149123]
[1673360768722,18.14672783,1330.3,1330.2,0.07149123]
[1673360769722,18.14872783,1330.3,1330.2,0.07149123]
[1673360769993,18.14672783,1330.3,1330.2,0.07149123]
[1673360771757,10.62962783,1330.3,1330.2,0.07149123]
[1673360772482,18.14672783,1330.3,1330.2,0.07149123]
[1673360772670,25.66382783,1330.3,1330.2,0.07149123]
[1673360773136,25.66382783,1330.3,1330.2,0.40233702]
[1673360773358,24.36340342,1330.3,1330.2,0.40233702]
[1673360773511,16.84630342,1330.3,1330.2,0.40233702]
[1673360774614,18.18830342,1330.3,1330.2,0.40233702]
[1673360774932,25.70540342,1330.3,1330.2,0.40233702]
[1673360777294,36.68901706,1330.3,1330.2,0.40233702]
[1673360777660,36.12810778,1330.3,1330.2,0.40233702]
[1673360777852,37.25173919,1330.3,1330.2,0.40233702]
[1673360778489,35.56742305,1330.3,1330.2,0.40233702]
[1673360778676,37.25173919,1330.3,1330.2,0.40233702]
[1673360778892,38.37386263,1330.3,1330.2,0.40233702]
[1673360779920,39.12598164,1330.3,1330.2,0.40233702]
[1673360780379,43.64198164,1330.3,1330.2,0.40233702]
[1673360780564,40.64410778,1330.3,1330.2,0.40233702]
[1673360781024,41.39622679,1330.3,1330.2,0.40233702]
[1673360781980,37.80573857,1330.3,1330.2,0.40233702]
[1673360782134,9.01635773,1330.3,1330.2,0.40233702]
[1673360782338,16.53345773,1330.3,1330.2,0.40233702]
[1673360782712,24.05055773,1330.3,1330.2,0.40233702]
[1673360782870,7.89612243,1330.3,1330.2,0.40233702]
[1673360783076,22.92832243,1330.3,1330.2,0.40233702]
[1673360783291,22.69832243,1330.3,1330.2,0.40233702]
[1673360783943,30.44542243,1330.3,1330.2,0.40233702]
[1673360785191,7.89412243,1330.3,1330.2,0.40233702]
[1673360785405,22.92832243,1330.3,1330.2,0.40233702]
[1673360785717,30.44542243,1330.3,1330.2,0.40233702]
[1673360786872,30.44313281,1330.3,1330.2,0.40233702]
[1673360789608,15.40893281,1330.3,1330.2,0.40233702]
[1673360790644,7.66183281,1330.3,1330.2,0.40233702]
[1673360790906,5.5557138,1330.3,1330.2,0.40233702]
[1673360791589,2.5557138,1330.3,1330.2,0.40233702]
[1673360791803,2.5517138,1330.3,1330.2,0.40233702]
[1673360793316,2.5517138,1330.3,1330.2,7.91999702]
[1673360793530,2.5517138,1330.3,1330.2,7.96899702]
[1673360793747,2.5517138,1330.3,1330.2,0.45133702]
[1673360794060,2.5517138,1330.3,1330.2,0.40233702]
[1673360795420,4.43028432,1330.3,1330.2,0.40233702]
[1673360795599,2.5517138,1330.3,1330.2,0.40233702]